Cogmind - Beta 10.2 @@@ ROGUE MODE // 2021.01.16 @ 15:38:02 Player: CrossedViper Result: Destroyed by M Guard with Graviton Cannon Performance ------------- Evolutions (9) 4500 Regions Visited (26) 5200 Robots Destroyed (421) 2105 Value Destroyed (21959) 21959 Prototype IDs (82) 1640 Alien Tech Used (3) 600 Bonus (19374) 19374 TOTAL SCORE: 55378 Bonus ------- Triggered High Security 1000 High Alert Combat Kills 11085 Follower Combat Kills 1110 Aligned with FarCom 300 Met Zhirov 300 Met R17 at Cetus 500 Found Hidden Lab 3000 Scanned by Researcher 500 Acquired SGEMP 2000 Delivered SGEMP 2000 Friendly Fire -2421 Cogmind --------- Core Integrity 0/1600 Matter 128/300 Energy 98/100 System Corruption 10% Temperature Cool (0) Movement Core (50) Location -1/Command Parts ------- > --- POWER (3) -------- (None) > --- PROPULSION (6) --- (None) > --- UTILITY (14) ----- Improved Melee Analysis Suite Advanced Target Analyzer Experimental Core Analyzer > --- WEAPON (2) ------- (None) > --- INVENTORY (4) ---- AEGIS Remote Shield Improved Potential Cannon Peak State ------------ > --- POWER ------------ Compact Particle Reactor Light Quantum Reactor Improved Quantum Reactor > --- PROPULSION ------- Biometal Medium Treads Centrium Heavy Treads Advanced Heavy Siege Treads High-density Centrium Leg > --- UTILITY ---------- Advanced Cooling System Advanced Cooling System Advanced Cooling System Experimental Cooling System Large Storage Unit Large Storage Unit Advanced Target Analyzer Experimental Core Analyzer Quantum Capacitor Centrium Light Armor Plating Centrium Medium Armor Plating Medium Regenerative Plating AEGIS Remote Shield > --- WEAPON ----------- Gamma Rifle Nova Cannon > --- INVENTORY -------- Experimental Energy Well Experimental Weapon Shielding Medium Reflective Plating Advanced Powered Armor Advanced Focal Shield AEGIS Remote Shield System Purifier Core Regenerator Gamma Rifle Potential Cannon Improved Potential Cannon Compact Linear Accelerator Ragnarok Missile Launcher [Rating: 207] Favorites ----------- Power Mini Fusion Reactor Engine Heavy Ion Engine Power Core Micro Fission Core Reactor Mini Fusion Reactor Propulsion Combat Airjet Treads Light Treads Leg Advanced Myomer Leg Wheel Armored Huge Wheel Hover Unit Combat Airjet Utility Large Storage Unit Device Advanced Cooling System Storage Large Storage Unit Processor Improved Armor Integrity Analyzer Hackware Advanced System Shield Protection Centrium Medium Armor Plating Weapon Advanced Beam Cannon Energy Gun Gamma Rifle Energy Cannon Advanced Beam Cannon Ballistic Gun KE Penetrator Ballistic Cannon Compact Linear Accelerator Launcher Fusion Bomb Launcher Special Weapon Plasma Cutter Piercing Weapon Heavy Pick Build | -11 -10 -10 -9 -9 -9 -8 -8 -7 -6 -5 -5 -5 -5 -5 -4 -4 -4 -4 -3 -3 -3 -3 -2 -2 -1 -1 ------- Run | Scr Mat Min Mat Min Exi Min Mat Fac Fac Fac Ext Cet Arc Hub Fac Upp Upp Zhi Pro Res Arm Lab Res Tes Acc Com Slots Evolved 18 | . . . 2 . . . 2 2 2 2 . . . . 2 . . . . 2 . . 2 . 2 . Power 2 | . . . . . . . . . . 1 . . . . . . . . . . . . . . 1 . Propulsion 4 | . . . . . . . . 1 1 . . . . . 1 . . . . 1 . . . . . . Utility 12 | . . . 2 . . . 2 1 1 1 . . . . 1 . . . . 1 . . 2 . 1 . Weapon . | . . . . . . . . . . . . . . . . . . . . . . . . . . . Parts Attached 467 | . 3 6 20 2 27 . 23 27 16 5 16 22 . 8 9 6 21 5 9 17 30 4 28 54 18 91 Power 34 | . . 1 1 1 2 . 1 2 . 1 2 3 . . 1 . 1 1 1 2 2 . . 5 1 6 Engine 7 | . . 1 1 1 1 . 1 1 . . . . . . . . . . . . . . . . . 1 Core 4 | . . . . . . . . 1 . 1 . . . . 1 . . 1 . . . . . . . . Reactor 23 | . . . . . 1 . . . . . 2 3 . . . . 1 . 1 2 2 . . 5 1 5 Propulsion 75 | . 2 1 4 1 3 . 6 3 1 . . 2 . 2 1 . 6 3 1 3 8 . 5 6 4 13 Treads 33 | . 2 1 4 1 1 . 6 . . . . . . . . . . . . . 3 . 5 2 4 4 Leg 10 | . . . . . 2 . . . . . . . . . . . . . . . . . . 3 . 5 Wheel 4 | . . . . . . . . . . . . . . . . . . . . . . . . . . 4 Hover 28 | . . . . . . . . 3 1 . . 2 . 2 1 . 6 3 1 3 5 . . 1 . . Flight . | . . . . . . . . . . . . . . . . . . . . . . . . . . . Utility 204 | . 1 1 8 . 14 . 10 16 12 3 7 7 . 4 5 4 10 1 5 9 11 2 11 26 9 28 Device 85 | . . . 2 . 7 . 3 7 4 . 2 2 . 1 . 3 1 1 3 4 6 2 7 15 3 12 Storage 24 | . . . 3 . 1 . 3 1 . . 1 . . . . . 1 . . 1 3 . . 4 2 4 Processor 8 | . 1 . . . 1 . . 1 1 . . . . . . . . . 1 1 . . 1 . . 1 Hackware 4 | . . . . . . . . . 1 . . . . 2 1 . . . . . . . . . . . Protection 83 | . . 1 3 . 5 . 4 7 6 3 4 5 . 1 4 1 8 . 1 3 2 . 3 7 4 11 Artifact . | . . . . . . . . . . . . . . . . . . . . . . . . . . . Weapon 154 | . . 3 7 . 8 . 6 6 3 1 7 10 . 2 2 2 4 . 2 3 9 2 12 17 4 44 Energy Gun 28 | . . . 1 . . . . . . . . . . . 1 . 1 . . . 7 2 4 4 2 6 Energy Cannon 38 | . . . 4 . 3 . 1 . . . . . . . . 1 . . . . 1 . 5 6 2 15 Ballistic Gun 60 | . . 3 2 . 4 . 4 6 2 1 4 9 . 1 1 1 3 . 2 2 1 . 1 3 . 10 Ballistic Cannon 8 | . . . . . . . . . . . . . . . . . . . . . . . 1 2 . 5 Launcher 15 | . . . . . . . . . . . 1 1 . 1 . . . . . 1 . . 1 2 . 8 Special Weapon 4 | . . . . . 1 . 1 . . . 2 . . . . . . . . . . . . . . . Impact Weapon . | . . . . . . . . . . . . . . . . . . . . . . . . . . . Slashing Weapon . | . . . . . . . . . . . . . . . . . . . . . . . . . . . Piercing Weapon 1 | . . . . . . . . . 1 . . . . . . . . . . . . . . . . . Special Melee Weapon . | . . . . . . . . . . . . . . . . . . . . . . . . . . . Unidentified Prototypes 51 | . . . 2 . 9 . . 1 1 . 4 2 . . 1 . 1 3 1 1 2 3 3 16 . 1 Parts Lost 123 | . . 1 7 . 1 . 10 . 1 . 3 . . 2 8 . 12 . 5 10 3 . 6 6 1 47 Power 14 | . . . 1 . . . . . . . . . . . . . 1 . 2 . . . . 2 . 8 Propulsion 39 | . . . 1 . . . 3 . . . . . . 1 1 . 6 . 1 7 2 . 1 1 1 14 Utility 44 | . . . 2 . . . 2 . 1 . 2 . . . 4 . 5 . 2 3 1 . 3 . . 19 Weapon 26 | . . 1 3 . 1 . 5 . . . 1 . . 1 3 . . . . . . . 2 3 . 6 Highest Loss Streak 15 | . . 1 3 . 1 . 3 . 1 . 3 . . 1 4 . 6 . 4 9 3 . 2 4 1 15 Average Slot Usage (%) 86 | . 98 94 92 100 89 88 96 94 99 96 95 94 94 93 89 84 78 82 80 84 58 82 69 76 85 74 Engine 4 | . 14 14 10 11 9 11 9 5 . . . . . . . . . . . . . . . . . . Core 1 | . . . . . . . . 1 6 7 6 . . . 3 5 5 5 3 . . . . . . . Reactor 3 | . . . . . 1 . . . . . . 5 5 5 5 5 4 5 4 4 5 9 8 7 10 10 Treads 10 | . 28 28 21 22 18 . 15 . . . . . . . . . . . . . 9 . 12 9 13 13 Leg 1 | . . . . . 3 22 2 . . . . . . . . . . . . . . . . 3 3 1 Hover 7 | . . . . . . . . 22 26 23 23 23 23 22 20 21 13 17 26 24 . 23 . . . . Device 9 | . . . 6 11 5 . 10 10 10 2 . 8 11 11 4 5 2 5 8 7 10 16 17 20 22 16 Storage 16 | . 14 14 19 22 13 11 21 23 20 17 18 19 17 17 15 15 19 21 21 18 14 19 12 9 8 9 Processor 5 | . 13 3 . . 2 11 9 14 13 11 11 6 5 5 5 5 1 . 3 4 4 4 5 8 8 8 Protection 10 | . . 5 12 11 13 11 10 2 6 20 21 15 17 11 10 11 17 18 10 15 3 4 3 7 12 7 Energy Gun 1 | . 14 1 1 . . . . . . . . . . . 4 . . . . . 6 . 3 3 3 1 Energy Cannon 5 | . . . 15 22 10 11 4 . . . . . . . . 3 1 . . . 1 3 2 2 2 2 Ballistic Gun 5 | . 14 25 5 . 8 11 11 11 12 5 8 7 11 10 5 . 7 9 1 7 . . 1 . . 1 Naked Turns . | . . . . . . . . . . . . . . . . . . . . . . . . . . . Heaviest Build 163 | 10 10 14 52 50 128 103 135 77 80 89 92 113 103 104 107 106 129 129 88 102 89 84 116 123 163 163 Greatest Support 240 | 20 40 40 40 40 60 60 60 66 88 88 104 104 104 104 104 102 102 89 90 102 85 85 240 240 199 199 Greatest Overweight (x) 11 | . . . 1 1 3 1 3 1 . 1 1 1 . 1 1 1 3 3 . 11 6 . . 2 1 5 Average Overweight (x) . | . . . . 1 1 1 1 . . . . . . . . . 1 1 . . . . . . . . Largest Inventory Capacity 36 | . 6 6 18 16 36 24 36 22 22 22 22 22 22 22 22 22 22 22 22 22 16 16 16 14 20 18 Average Capacity 17 | . 6 6 14 16 22 24 20 22 22 22 22 22 22 22 22 22 22 22 22 21 14 16 13 12 15 15 Most Carried 24 | . 6 6 16 16 24 24 23 22 22 22 22 22 22 22 20 19 22 20 22 22 16 16 16 14 16 16 Average Carried 15 | . 2 5 12 15 21 24 18 20 20 21 21 21 21 20 15 17 13 12 20 20 12 12 13 11 14 11 Final Capacity 24 | 6 6 6 16 16 24 24 22 22 22 22 22 22 22 22 22 22 22 22 22 16 16 16 10 14 16 4 Final Carried 24 | 6 2 5 16 16 24 24 22 22 22 22 22 22 22 19 20 19 11 20 19 16 11 16 9 14 16 3 Class Distribution -------------------- 68% | Scavenger-Mutant 19% | Mutant 11% | Hauler-Mutant Dominant Class ---------------- Mutant | -10/Materials Mutant | -10/Mines Mutant | -9/Materials Mutant | -9/Mines Hauler-Mutant | -9/Exiles Hauler-Mutant | -8/Mines Scavenger-Mutant | -8/Materials Scavenger-Mutant | -7/Factory Scavenger-Mutant | -6/Factory Scavenger-Mutant | -5/Factory Scavenger-Mutant | -5/Extension Scavenger-Mutant | -5/Cetus Scavenger-Mutant | -5/Archives Scavenger-Mutant | -5/Hub_04(d) Scavenger-Mutant | -4/Factory Scavenger-Mutant | -4/Upper Caves Scavenger-Mutant | -4/Upper Caves Scavenger-Mutant | -4/Zhirov Scavenger-Mutant | -3/Proximity Caves Scavenger-Mutant | -3/Research Scavenger-Mutant | -3/Armory Scavenger-Mutant | -3/Lab Scavenger-Mutant | -2/Research Scavenger-Mutant | -2/Testing Scavenger-Mutant | -1/Access Scavenger-Mutant | -1/Command Resources | -11 -10 -10 -9 -9 -9 -8 -8 -7 -6 -5 -5 -5 -5 -5 -4 -4 -4 -4 -3 -3 -3 -3 -2 -2 -1 -1 ----------- Run | Scr Mat Min Mat Min Exi Min Mat Fac Fac Fac Ext Cet Arc Hub Fac Upp Upp Zhi Pro Res Arm Lab Res Tes Acc Com Matter Collected 9779 | 181 77 87 280 17 847 25 618 434 183 79 486 530 402 470 158 231 565 . 53 504 400 . 509 523 263 1857 Remotely . | . . . . . . . . . . . . . . . . . . . . . . . . . . . Salvage Created 23775 | . 77 217 1132 353 454 58 1578 386 185 79 946 880 404 1085 160 711 784 . 61 263 531 . 1325 1895 3232 6979 Parts 1021 | . 2 21 65 12 60 8 83 18 3 5 61 45 17 36 14 9 37 . 6 22 44 . 67 87 102 197 Haulers Intercepted 17 | . . . 4 . . . 4 . . . . . . 2 . . . . . 1 . . . 1 5 . Recyclers Shooed 7 | . . . . . . . . . . . 2 . . 1 . . 2 . . . . . 1 . . 1 Parts Field Recycled . | . . . . . . . . . . . . . . . . . . . . . . . . . . . Retrieved Matter . | . . . . . . . . . . . . . . . . . . . . . . . . . . . Parts Self-Destructed 29 | . . . . . . . . . . . . . . . . 3 20 . 6 . . . . . . . Prevented 3 | . . . . . . . . . . . . . . . . 1 2 . . . . . . . . . Kills | -11 -10 -10 -9 -9 -9 -8 -8 -7 -6 -5 -5 -5 -5 -5 -4 -4 -4 -4 -3 -3 -3 -3 -2 -2 -1 -1 ------- Run | Scr Mat Min Mat Min Exi Min Mat Fac Fac Fac Ext Cet Arc Hub Fac Upp Upp Zhi Pro Res Arm Lab Res Tes Acc Com Combat Hostiles Destroyed 326 | . 2 5 20 3 8 3 26 4 3 1 9 13 4 10 2 . 10 . 1 4 7 . 16 21 28 126 Melee 3 | . . . . . . . . . . 1 2 . . . . . . . . . . . . . . . Guns 98 | . 2 5 10 . 1 1 16 4 3 . 2 4 4 8 2 . 8 . 1 2 1 . 3 . 10 11 Cannons 75 | . . . 10 3 7 2 10 . . . . . . . . . 2 . . . 5 . 3 9 2 22 AOE 101 | . . . . . . . . . . . 1 5 . 2 . . . . . 2 . . 6 5 1 79 Classes Destroyed 28 | . 1 2 5 . 2 1 1 . . . . 1 1 . 1 1 . . . . . . 1 4 2 5 Worker 27 | . . . 1 2 . . 3 3 . . 4 . . 3 . . . . . . . . 3 1 2 5 Builder 13 | . . 1 . . . . 1 . . . 2 . . 2 1 . . . . . . . 3 2 1 . Tunneler 2 | . . . . . . 1 . 1 . . . . . . . . . . . . . . . . . . Hauler 17 | . . . 4 . . . 4 . . . . . . 2 . . . . . 1 . . . 1 5 . Recycler 17 | . . . 1 2 . . 4 1 . . 1 . . 1 . . . . . . . . . 3 1 3 Carrier 2 | . . . . . . . . . . . . . . . . . . . . . . . . . . 2 Mechanic 7 | . . . . . . . . . . . . . . . . . . . . . . . . . . 7 Operator 1 | . . . . . . . . . . . . . 1 . . . . . . . . . . . . . Watcher 3 | . . . . . . . . . . . . 2 . . . . . . . . . . . . . 1 Swarmer 38 | . . 3 3 . . 3 9 . . . . 4 . . . . 5 . . 2 . . 4 5 . . Saboteur 8 | . . . . . . . . . . . . . . . . . . . . . . . . . 1 7 Grunt 112 | . 2 2 10 3 . . 11 . 3 . 3 . . 9 . . . . . . . . 2 . 8 59 Brawler 12 | . . . . . . . . . . . . . . . . . . . . . . . . . 2 10 Duelist 20 | . . . 1 . . . . . . . . . . . . . 1 . . . . . . . . 18 Protector 4 | . . . . . . . . . . . . . . . . . . . . . . . . . . 4 Sentry 31 | . . . 6 . . . 5 1 . 1 3 . 4 1 1 . 1 . . . 2 . 2 . 3 1 Specialist 2 | . . . . . . . . . . . . . . . . . . . . . . . . 2 . . Hunter 31 | . . . . . . . 1 3 . . 3 1 . . . . 2 . . . . . 4 4 11 2 Programmer 39 | . . . . . . . . . . . . . . . 1 . 1 . 1 2 5 . 3 6 3 17 Behemoth 2 | . . . . . . . . . . . . . . . . . . . . . . . 1 . . 1 Cetus Guard 8 | . . . . . . . . . . . . 8 . . . . . . . . . . . . . . Investigator 2 | . . . . . . . . . . . . . . . . . . . . . . . . . . 2 Striker 8 | . . . . . . . . . . . . . . . . . . . . . . . . 2 . 6 Executioner 1 | . . . . . . . . . . . . . . . . . . . . . . . . . . 1 Alpha 7 1 | . . . . . . . . . . . . . . . . . . . . . . . . 1 . . Protovariant D 1 | . . . . . . . . . . . . . . . . . . . . . . . . 1 . . Zionite 6 | . . . . . 6 . . . . . . . . . . . . . . . . . . . . . Decomposer 6 | . . . . . . . . . . . . . . . . . 6 . . . . . . . . . Packrat 1 | . . . . . . . . . . . . . . . . . 1 . . . . . . . . . Samaritan 2 | . . . . . . . . . . . . . . . . 1 1 . . . . . . . . . Assembled 7 | . . . . . 7 . . . . . . . . . . . . . . . . . . . . . Thug 1 | . . 1 . . . . . . . . . . . . . . . . . . . . . . . . Best Kill Streak 33 | . 1 3 4 4 7 3 8 4 3 1 4 5 5 6 1 . 7 . 1 2 3 . 5 7 10 33 Combat Bots Only 31 | . 1 3 3 3 7 3 5 1 3 1 3 5 3 5 1 . 7 . 1 2 3 . 4 5 10 31 Max Kills in Single Turn 7 | . 1 2 1 1 1 1 1 2 1 1 1 2 1 2 1 1 1 . 1 2 1 . 2 6 2 7 Gunslinging 1 | . . 1 . . . . . . . . . . . . . . . . . . . . . . . . Exploded 6 | . . . . . . . . . . . 1 1 . 1 . . . . . 2 . . 2 5 1 6 Melee 1 | . . . . . . . . . . 1 1 . . . . . . . . . . . . . . . Uniques/NPCs Destroyed 5 | . . . . . 4 . . . . . 1 . . . . . . . . . . . . . . . EX-BIN (-9/Exiles) EX-DEC (-9/Exiles) EX-HEX (-9/Exiles) 8R-AWN (-9/Exiles) A7 (-5/Extension) Combat | -11 -10 -10 -9 -9 -9 -8 -8 -7 -6 -5 -5 -5 -5 -5 -4 -4 -4 -4 -3 -3 -3 -3 -2 -2 -1 -1 -------- Run | Scr Mat Min Mat Min Exi Min Mat Fac Fac Fac Ext Cet Arc Hub Fac Upp Upp Zhi Pro Res Arm Lab Res Tes Acc Com Damage Taken 34953 | . 177 256 1085 43 576 54 2403 504 363 117 1879 1318 130 1824 1134 18 1983 . 1308 1961 914 . 4008 2487 1515 8896 Core 4111 | . 21 52 153 . 30 9 283 28 74 . 151 198 . 109 82 . 188 . 224 277 147 . 206 171 64 1644 Absorbed by Shields 7511 | . . . . . . . . . . . 164 . . . . . . . . . . . 1134 608 1423 4182 Reduced by Siege Mode 1142 | . . . . . . . . . . . . . . . . . . . . . . . 511 388 53 190 Core Remaining (%) 69 | 100 . 70 . . . 52 48 96 91 . . . . 54 . . . . 57 . . 63 . 65 . . Volleys Fired 1350 | . 10 21 88 14 78 7 131 21 11 . 60 36 19 52 13 30 54 . 9 10 21 6 128 110 139 282 Largest 2 | . 2 2 2 2 2 2 2 2 2 . 2 2 2 2 2 1 2 . 2 2 2 1 2 1 1 2 Hottest 200 | . 60 60 136 136 136 91 91 51 56 . 66 70 70 70 115 88 148 . 68 68 150 113 113 120 200 200 Shots Fired 1931 | . 20 41 154 28 111 11 251 41 22 . 89 62 38 101 26 30 98 . 17 19 24 6 129 110 139 364 Gun 1455 | . 20 41 108 . 73 7 175 41 22 . 64 52 38 99 26 21 93 . 17 18 12 . 87 74 117 250 Cannon 396 | . . . 46 28 24 4 74 . . . . . . . . 9 5 . . . 12 6 39 35 22 92 Launcher 47 | . . . . . . . . . . . 8 10 . 2 . . . . . 1 . . 3 1 . 22 Special 33 | . . . . . 14 . 2 . . . 17 . . . . . . . . . . . . . . . Kinetic 1056 | . 10 34 99 . 73 7 175 41 22 . 64 52 38 99 21 21 91 . 17 18 2 . 28 14 7 123 Thermal 387 | . 10 7 55 28 38 4 76 . . . 17 . . . 5 . . . . . 13 6 17 27 15 69 Explosive 23 | . . . . . . . . . . . . . . . . . . . . 1 . . 3 1 . 18 Electromagnetic 465 | . . . . . . . . . . . 8 10 . 2 . 9 7 . . . 9 . 81 68 117 154 Robot Hit Streak 53 | . 17 29 18 6 20 3 13 10 11 . 15 10 16 12 4 12 9 . 4 6 8 . 39 34 23 53 Robot Miss Streak 7 | . 1 2 4 3 3 1 4 3 2 . 3 4 1 4 4 2 7 . 2 2 1 . 2 2 2 2 Penetration Max 2 | . . . . . 1 . . 1 1 . 1 1 1 1 . 1 1 . . . . . 2 . . . Secondary Targets 6 | . . 1 . . . . . . 2 . . . . 2 . . . . . 1 . . . . . . Max Gunslinging Chain 1 | . . 1 . . . . . . 1 . . . . 1 . . . . . 1 . . . . . . Capacitor 486 | . . . . . . . . . . . . . . . . . . . . . 12 6 97 95 132 144 Shots Hit Robots 1438 | . 18 36 113 18 76 6 176 27 18 4 68 38 26 61 14 22 58 . 11 12 18 . 106 96 109 307 Core Hits 822 | . 5 16 52 7 31 4 62 19 8 3 32 32 11 37 9 16 31 . 3 13 10 . 54 48 51 268 Critical Hits 195 | . . 1 6 1 22 . 8 1 . . 9 11 7 13 4 7 9 . . 2 . . 26 7 15 46 Critical Kills 54 | . . . 4 . 4 . 1 . . . 2 4 3 4 1 3 5 . . 1 . . 8 1 7 6 Critical Parts Destroyed 101 | . . 1 1 1 9 . 6 1 . . 4 5 4 9 3 4 4 . . 1 . . 16 2 6 24 Melee Attacks 15 | . . . . . . . . . . 6 9 . . . . . . . . . . . . . . . Impact . | . . . . . . . . . . . . . . . . . . . . . . . . . . . Slashing . | . . . . . . . . . . . . . . . . . . . . . . . . . . . Piercing 15 | . . . . . . . . . . 6 9 . . . . . . . . . . . . . . . Sneak Attacks . | . . . . . . . . . . . . . . . . . . . . . . . . . . . Combat Hostiles . | . . . . . . . . . . . . . . . . . . . . . . . . . . . Follow-up Attacks . | . . . . . . . . . . . . . . . . . . . . . . . . . . . Damage Inflicted 74045 | . 209 386 1402 345 1117 142 2651 494 428 112 2432 1824 685 2208 513 864 1358 . 374 996 775 . 3080 3557 4976 43117 Guns 21201 | . 209 386 732 . 772 53 1575 494 428 . 1371 788 685 2011 387 330 1178 . 374 356 246 . 778 1326 2673 4049 Cannons 17058 | . . . 661 334 329 89 1052 . . . . . . . . 361 95 . . . 529 . 1144 1259 1386 9819 Explosions 35062 | . . . . . . . . . . . 649 1036 . 197 117 173 . . . 631 . . 1150 972 917 29220 Melee 367 | . . . . . . . . . . 112 255 . . . . . . . . . . . . . . . Ramming 164 | . . . 9 11 4 . . . . . . . . . 9 . 85 . . 9 . . 8 . . 29 Kinetic 15853 | . 103 313 628 . 772 53 1575 494 428 . 1371 788 685 2011 291 330 1159 . 374 356 35 . 613 256 392 2826 Thermal 31131 | . 106 73 765 334 341 89 1076 . . . 227 154 . . 96 173 . . . . 529 . 1254 1038 1746 23130 Explosive 17205 | . . . . . . . . . . . . . . . 117 . . . . 631 . . 444 972 165 14876 Electromagnetic 9325 | . . . . . . . . . . . 579 882 . 197 . 361 114 . . . 211 . 761 1291 2673 2256 Impact . | . . . . . . . . . . . . . . . . . . . . . . . . . . . Slashing . | . . . . . . . . . . . . . . . . . . . . . . . . . . . Piercing 367 | . . . . . . . . . . 112 255 . . . . . . . . . . . . . . . Highest Corruption 11 | . . . 1 1 1 1 . 1 1 . . . . 1 1 1 4 . 3 2 5 5 9 8 4 11 Average Corruption 2 | . . . 1 1 1 1 . 1 1 . . . . 1 1 1 2 . 2 1 2 2 5 4 1 4 Corruption Purged 48 | . . . . . . . . 1 2 . . . . . . 1 4 . . 2 1 5 2 12 4 14 Effects 122 | . . . 1 7 7 3 . . . . . . . 1 . . 9 . 2 . . 4 10 24 3 51 Message Errors 21 | . . . . 2 3 2 . . . . . . . . . . 2 . . . . 1 2 3 . 6 Matter Fused 13 | . . . . . . . . . . . . . . . . . 1 . 1 . . 2 2 3 . 4 Heat Flow Errors 16 | . . . . . . . . . . . . . . . . . 1 . . . . 1 2 6 1 5 Energy Discharges 11 | . . . . 2 1 . . . . . . . . . . . 1 . . . . . 1 2 . 4 Parts Rejected 2 | . . . . . . . . . . . . . . . . . . . . . . . . 1 . 1 Data Loss (minor) 18 | . . . 1 3 1 . . . . . . . . . . . . . . . . . 1 6 1 5 Data Loss (major) 4 | . . . . . . . . . . . . . . . . . . . . . . . 2 1 . 1 Misfires 2 | . . . . . . . . . . . . . . . . . . . . . . . . . . 2 Misdirections 2 | . . . . . . . . . . . . . . . . . . . . . . . . . . 2 Targeting Errors 23 | . . . . . 2 1 . . . . . . . . . . 3 . . . . . . 2 1 14 Weapon Failures 10 | . . . . . . . . . . . . . . 1 . . 1 . 1 . . . . . . 7 Overload Shots . | . . . . . . . . . . . . . . . . . . . . . . . . . . . Overflow Damage 5400 | . . . 3 10 2 . 10 . . . . 15 . 6 . 165 . . . 43 2 . 60 155 667 4262 Projectiles 1727 | . . . 3 10 2 . 10 . . . . . . . . 137 . . . . 2 . . 3 469 1091 Explosions 3670 | . . . . . . . . . . . . 15 . 6 . 28 . . . 43 . . 60 152 198 3168 Melee 3 | . . . . . . . . . . . . . . . . . . . . . . . . . . 3 Knockbacks 17 | . . . . . . . . . . . . . . . . . 3 . . . . . . . 5 9 Impact 5 | . . . . . . . . . . . . . . . . . 3 . . . . . . . . 2 Kinetic 12 | . . . . . . . . . . . . . . . . . . . . . . . . . 5 7 Secondary . | . . . . . . . . . . . . . . . . . . . . . . . . . . . Self-Inflicted Damage 574 | . . . . . . . . . . . . 2 . 62 42 18 42 . . 4 . . 9 41 73 281 Shots 16 | . . . . . . . . . . . . 1 . 3 1 1 . . . . . . 1 1 2 6 Rammed 13 | . . . 2 1 1 . . . . . . . . . 1 . 3 . . 1 . . 2 . . 2 Targets Rammed 13 | . . . 2 1 1 . . . . . . . . . 1 . 3 . . 1 . . 2 . . 2 Kicked . | . . . . . . . . . . . . . . . . . . . . . . . . . . . Crushed . | . . . . . . . . . . . . . . . . . . . . . . . . . . . Highest Temperature 348 | . 63 24 306 196 199 126 279 10 18 142 148 279 302 325 11 348 190 . 45 261 304 334 283 198 156 347 Average Temperature 90 | . 29 14 82 71 67 64 120 6 7 72 53 112 128 127 6 113 59 . 17 112 104 130 100 77 84 131 Received Heat Transfer 4286 | . 99 102 456 24 . . 999 12 171 27 274 9 9 546 60 . 102 . 117 99 45 . 449 . 131 555 Effects 8 | . . . 2 . . . . . . . . 1 . . . 1 . . . 1 1 . . . . 2 Energy Bleed 2 | . . . . . . . . . . . . 1 . . . . . . . 1 . . . . . . Interference 5 | . . . 2 . . . . . . . . . . . . . . . . . 1 . . . . 2 Matter Decay 1 | . . . . . . . . . . . . . . . . 1 . . . . . . . . . . Siege Activations 20 | . . . . . . . . . . . . . . . . . . . . . . . 4 8 3 5 Total Turns 604 | . . . . . . . . . . . . . . . . . . . . . . . 110 164 38 292 Longest Duration 126 | . . . . . . . . . . . . . . . . . . . . . . . 51 74 31 126 Robots Corrupted 53 | . . . . . . . . . . . 4 5 . . . 1 . . . . 1 . 4 8 16 14 Combat Hostiles 49 | . . . . . . . . . . . 4 4 . . . . . . . . 1 . 4 7 15 14 Parts Fried 96 | . . . . . . . . . . . 11 7 . . . 1 . . . . 4 . 7 14 32 20 Impact Corruptions 1 | . . . . . . . . . . . . . . . . . . . . . . . . . . 1 Robots Melted . | . . . . . . . . . . . . . . . . . . . . . . . . . . . Combat Hostiles . | . . . . . . . . . . . . . . . . . . . . . . . . . . . Parts Melted 31 | . . . 4 . . . 8 . . . 1 . . . . . . . . . 1 . 4 1 1 11 Heat Transferred 24548 | . 225 150 1369 592 700 148 1924 . . . 668 50 . . 111 200 . . . . 333 . 881 777 890 15530 Parts Sabotaged 5 | . . . . . . . . . . . . . . . . . 3 . . . . . . . . 2 Parts Stolen . | . . . . . . . . . . . . . . . . . . . . . . . . . . . Parts Stripped . | . . . . . . . . . . . . . . . . . . . . . . . . . . . Power Chain Reactions 13 | . . . . . . . . . . . 3 2 . 1 . 1 . . . . . . 2 . 2 2 Missiles Intercepted . | . . . . . . . . . . . . . . . . . . . . . . . . . . . Alert | -11 -10 -10 -9 -9 -9 -8 -8 -7 -6 -5 -5 -5 -5 -5 -4 -4 -4 -4 -3 -3 -3 -3 -2 -2 -1 -1 ------- Run | Scr Mat Min Mat Min Exi Min Mat Fac Fac Fac Ext Cet Arc Hub Fac Upp Upp Zhi Pro Res Arm Lab Res Tes Acc Com Peak Influence 4266 | . 77 228 229 86 . 75 498 416 288 106 255 466 345 506 360 . . . . 341 352 . 474 655 1973 4266 Initial 1262 | . . 30 10 31 . . . 226 135 42 51 142 186 120 133 . . . . 178 139 . . 261 341 1262 Average 546 | . 35 97 115 18 . 43 310 264 154 59 116 366 285 291 196 . . . . 256 224 . 143 557 1162 2497 Maximum Alert Level 5 | . . 1 1 . . . 2 2 1 . 1 2 1 2 1 . . . . 1 1 . 2 2 5 5 Low Security (%) 48 | . 100 96 88 100 . 100 19 . 80 100 94 8 14 29 78 . . . . 13 44 . 73 . . . Level 1 19 | . . 3 11 . . . 50 98 19 . 5 45 85 48 21 . . . . 86 55 . 15 6 2 . Level 2 14 | . . . . . . . 30 1 . . . 46 . 21 . . . . . . . . 10 93 21 . Level 3 1 | . . . . . . . . . . . . . . . . . . . . . . . . . 16 . Level 4 5 | . . . . . . . . . . . . . . . . . . . . . . . . . 43 17 Level 5 3 | . . . . . . . . . . . . . . . . . . . . . . . . . 2 29 High Security 7 | . . . . . . . . . . . . . . . . . . . . . . . . . 13 52 Max Security . | . . . . . . . . . . . . . . . . . . . . . . . . . . . Squads Dispatched 77 | . 1 . . . . . 5 2 3 . 1 . . 3 . . 1 . . 1 2 . 5 3 12 38 Investigation 8 | . . . . . . . 3 1 3 . . . . . . . . . . 1 . . . . . . Extermination 12 | . . . . . . . . . . . . . . . . . . . . . 2 . 2 3 2 3 Reinforcement 13 | . 1 . . . . . 2 1 . . 1 . . 3 . . . . . . . . 2 . 2 1 Assault 40 | . . . . . . . . . . . . . . . . . 1 . . . . . . . 5 34 Garrison 4 | . . . . . . . . . . . . . . . . . . . . . . . 1 . 3 . Intercept . | . . . . . . . . . . . . . . . . . . . . . . . . . . . Construction Impeded 3 | . . . . . . . . . . . 1 . . 1 . . . . . . . . 1 . . . Haulers Reinforced 2 | . . . . . . . . . . . . . . 1 . . . . . . . . . . 1 . Stealth | -11 -10 -10 -9 -9 -9 -8 -8 -7 -6 -5 -5 -5 -5 -5 -4 -4 -4 -4 -3 -3 -3 -3 -2 -2 -1 -1 --------- Run | Scr Mat Min Mat Min Exi Min Mat Fac Fac Fac Ext Cet Arc Hub Fac Upp Upp Zhi Pro Res Arm Lab Res Tes Acc Com Distress Signals 28 | . . . 3 . . . 3 1 . 2 1 2 . 2 1 . . . . 2 1 . 4 1 4 1 Communications Jammed . | . . . . . . . . . . . . . . . . . . . . . . . . . . . Distress Signals . | . . . . . . . . . . . . . . . . . . . . . . . . . . . Times Spotted 623 | . 4 9 29 3 40 2 58 10 8 4 17 12 5 25 14 . 24 . 26 18 14 . 32 31 48 190 Peak Tracking Total 24 | . 2 3 8 3 9 3 6 3 3 4 3 5 1 10 10 . 14 . 13 11 5 . 7 6 5 24 Tactical Retreats 57 | . . . . . 17 . 14 . 2 . . . . 5 . . 6 . 5 1 1 . . . 2 4 Traps | -11 -10 -10 -9 -9 -9 -8 -8 -7 -6 -5 -5 -5 -5 -5 -4 -4 -4 -4 -3 -3 -3 -3 -2 -2 -1 -1 ------- Run | Scr Mat Min Mat Min Exi Min Mat Fac Fac Fac Ext Cet Arc Hub Fac Upp Upp Zhi Pro Res Arm Lab Res Tes Acc Com Traps Triggered 11 | . . . 2 . . . 1 . 1 . 1 . . . . . . . . . . . 1 1 1 3 Indirectly . | . . . . . . . . . . . . . . . . . . . . . . . . . . . Trap Hack Attempts . | . . . . . . . . . . . . . . . . . . . . . . . . . . . Triggered . | . . . . . . . . . . . . . . . . . . . . . . . . . . . Disarmed . | . . . . . . . . . . . . . . . . . . . . . . . . . . . Reprogrammed . | . . . . . . . . . . . . . . . . . . . . . . . . . . . Reused . | . . . . . . . . . . . . . . . . . . . . . . . . . . . Traps Extracted . | . . . . . . . . . . . . . . . . . . . . . . . . . . . Installed . | . . . . . . . . . . . . . . . . . . . . . . . . . . . Triggered 3 | . . . . . . . . . . . . . . . . 3 . . . . . . . . . . Machines | -11 -10 -10 -9 -9 -9 -8 -8 -7 -6 -5 -5 -5 -5 -5 -4 -4 -4 -4 -3 -3 -3 -3 -2 -2 -1 -1 ---------- Run | Scr Mat Min Mat Min Exi Min Mat Fac Fac Fac Ext Cet Arc Hub Fac Upp Upp Zhi Pro Res Arm Lab Res Tes Acc Com Machines Disabled 53 | . . . 1 1 13 . 2 . . . 3 . 3 5 2 . . . . . 1 1 3 7 8 3 Max in Single Turn 2 | . . . 1 . 2 . 1 . . . 1 . 1 1 1 . . . . . 1 1 1 2 2 1 Garrison Access 1 | . . . . . . . . . . 1 . . . . . . . . . . . . . . . . Machines Sabotaged . | . . . . . . . . . . . . . . . . . . . . . . . . . . . Garrisons Compromised . | . . . . . . . . . . . . . . . . . . . . . . . . . . . Overloaded Fab Kills . | . . . . . . . . . . . . . . . . . . . . . . . . . . . Fab Network Shutdowns . | . . . . . . . . . . . . . . . . . . . . . . . . . . . Hacking | -11 -10 -10 -9 -9 -9 -8 -8 -7 -6 -5 -5 -5 -5 -5 -4 -4 -4 -4 -3 -3 -3 -3 -2 -2 -1 -1 --------- Run | Scr Mat Min Mat Min Exi Min Mat Fac Fac Fac Ext Cet Arc Hub Fac Upp Upp Zhi Pro Res Arm Lab Res Tes Acc Com Machines Accessed 50 | . 1 1 2 . 2 . 6 3 5 3 5 . . 5 1 . . 4 . 4 1 1 . 3 1 2 Terminals 30 | . 1 . 2 . . . 4 1 2 2 5 . . 5 1 . . . . 2 . . . 3 . 2 Fabricators 3 | . . . . . . . . . 1 . . . . . . . . . . 1 1 . . . . . Repair Stations 3 | . . . . . . . 1 2 . . . . . . . . . . . . . . . . . . Recycling Units . | . . . . . . . . . . . . . . . . . . . . . . . . . . . Scanalyzers 1 | . . . . . . . 1 . . . . . . . . . . . . . . . . . . . Garrison Access 5 | . . . . . . . . . 2 1 . . . . . . . . . 1 . . . . 1 . Total Hacks 122 | . 4 1 2 . 2 . 18 6 15 5 11 . . 11 4 . . 17 . 12 2 1 . 7 1 3 Successful 69 | . 3 1 1 . 2 . 9 4 5 2 7 . . 5 1 . . 17 . 5 2 1 . 3 . 1 Failed 53 | . 1 . 1 . . . 9 2 10 3 4 . . 6 3 . . . . 7 . . . 4 1 2 Catastrophic 12 | . . . 1 . . . . 1 3 1 . . . 2 . . . . . 2 . . . 1 1 . Database Lockouts . | . . . . . . . . . . . . . . . . . . . . . . . . . . . Manual 39 | . 4 . 2 . 1 . 5 . 5 . 6 . . 4 4 . . . . 2 . . . 4 . 2 Terminals 74 | . 4 . 2 . . . 12 2 5 3 11 . . 11 4 . . . . 10 . . . 7 . 3 Fabricators 7 | . . . . . . . . . 4 . . . . . . . . . . 1 2 . . . . . Repair Stations 8 | . . . . . . . 4 4 . . . . . . . . . . . . . . . . . . Recycling Units . | . . . . . . . . . . . . . . . . . . . . . . . . . . . Scanalyzers 2 | . . . . . . . 2 . . . . . . . . . . . . . . . . . . . Garrison Access 10 | . . . . . . . . . 6 2 . . . . . . . . . 1 . . . . 1 . Terminal Hacks 43 | . 2 1 1 . 2 . 3 . 1 1 3 . . 5 1 . . 17 . 4 . 1 . 1 . . Record 7 | . . . . . 1 . . . . . . . . . . . . 5 . . . 1 . . . . Part Schematic 4 | . . . . . . . . . . . . . . . . . . 4 . . . . . . . . Robot Analysis 7 | . 2 . 1 . . . . . . . . . . . . . . 4 . . . . . . . . Prototype ID Bank 5 | . . . . . . . . . . . . . . . . . . 4 . . . . . 1 . . Open Door 5 | . . 1 . . . . . . . 1 3 . . . . . . . . . . . . . . . Branch Access Points 2 | . . . . . . . . . . . . . . . 1 . . . . 1 . . . . . . Scanalyzer Index 1 | . . . . . . . . . . . . . . . . . . . . 1 . . . . . . Alert Level 3 | . . . . . . . 1 . 1 . . . . 1 . . . . . . . . . . . . Unreport Threat 4 | . . . . . . . 1 . . . . . . 3 . . . . . . . . . . . . Locate Traps 1 | . . . . . . . . . . . . . . . . . . . . 1 . . . . . . Recall Investigation 1 | . . . . . . . 1 . . . . . . . . . . . . . . . . . . . Hauler Manifests 2 | . . . . . . . . . . . . . . 1 . . . . . 1 . . . . . . EX-Prototype ID Bank 1 | . . . . . 1 . . . . . . . . . . . . . . . . . . . . . Fabricator Hacks 5 | . . . . . . . . . 3 . . . . . . . . . . . 2 . . . . . Load Schematic 2 | . . . . . . . . . 1 . . . . . . . . . . . 1 . . . . . Build 3 | . . . . . . . . . 2 . . . . . . . . . . . 1 . . . . . Repair Station Hacks 8 | . . . . . . . 4 4 . . . . . . . . . . . . . . . . . . Scan Component 4 | . . . . . . . 2 2 . . . . . . . . . . . . . . . . . . Repair 4 | . . . . . . . 2 2 . . . . . . . . . . . . . . . . . . Recycling Unit Hacks . | . . . . . . . . . . . . . . . . . . . . . . . . . . . Scanalyzer 2 | . . . . . . . 2 . . . . . . . . . . . . . . . . . . . Insert Component 1 | . . . . . . . 1 . . . . . . . . . . . . . . . . . . . Analyze 1 | . . . . . . . 1 . . . . . . . . . . . . . . . . . . . Garrison Access Hacks 1 | . . . . . . . . . . 1 . . . . . . . . . . . . . . . . Seal Access 1 | . . . . . . . . . . 1 . . . . . . . . . . . . . . . . Unauthorized Hacks 10 | . 1 . . . . . . . 1 . 4 . . . . . . . . 1 . . . 2 . 1 Terminals 9 | . 1 . . . . . . . . . 4 . . . . . . . . 1 . . . 2 . 1 Track 3 | . 1 . . . . . . . . . 1 . . . . . . . . . . . . 1 . . Botnet 5 | . . . . . . . . . . . 2 . . . . . . . . 1 . . . 1 . 1 Operators 1 | . . . . . . . . . . . 1 . . . . . . . . . . . . . . . Fabricators 1 | . . . . . . . . . 1 . . . . . . . . . . . . . . . . . Prioritize 1 | . . . . . . . . . 1 . . . . . . . . . . . . . . . . . Repair Stations . | . . . . . . . . . . . . . . . . . . . . . . . . . . . Recycling Units . | . . . . . . . . . . . . . . . . . . . . . . . . . . . Scanalyzers . | . . . . . . . . . . . . . . . . . . . . . . . . . . . Garrison Access . | . . . . . . . . . . . . . . . . . . . . . . . . . . . Data Cores Recovered . | . . . . . . . . . . . . . . . . . . . . . . . . . . . Used . | . . . . . . . . . . . . . . . . . . . . . . . . . . . Hacking Detections 35 | . . . 2 . . . 6 1 5 2 3 . . 5 1 . . . . 4 . . . 3 1 2 Full Trace Events 7 | . . . . . . . 3 1 3 . . . . . . . . . . . . . . . . . Feedback Events 2 | . . . . . . . . 1 1 . . . . . . . . . . . . . . . . . Corruption 2 | . . . . . . . . 1 1 . . . . . . . . . . . . . . . . . Feedback Blocked . | . . . . . . . . . . . . . . . . . . . . . . . . . . . Robot Schematics Acquired . | . . . . . . . . . . . . . . . . . . . . . . . . . . . Robots Built . | . . . . . . . . . . . . . . . . . . . . . . . . . . . Matter . | . . . . . . . . . . . . . . . . . . . . . . . . . . . Time . | . . . . . . . . . . . . . . . . . . . . . . . . . . . Total Robot Build Rating . | . . . . . . . . . . . . . . . . . . . . . . . . . . . Part Schematics Acquired 5 | . . . . . . . 1 . . . . . . . . . . 4 . . . . . . . . Parts Built 5 | . . . . . . . . . 4 . . . . . . . . . . . 1 . . . . . Matter 731 | . . . . . . . . . 380 . . . . . . . . . . . 351 . . . . . Time 329 | . . . . . . . . . 142 . . . . . . . . . . . 187 . . . . . Total Part Build Rating 27 | . . . . . . . . . 20 . . . . . . . . . . . 7 . . . . . Parts Repaired 4 | . . . . . . . 2 2 . . . . . . . . . . . . . . . . . . Time 261 | . . . . . . . 140 121 . . . . . . . . . . . . . . . . . . Parts Recycled . | . . . . . . . . . . . . . . . . . . . . . . . . . . . Recycled Matter . | . . . . . . . . . . . . . . . . . . . . . . . . . . . Retrieved Matter . | . . . . . . . . . . . . . . . . . . . . . . . . . . . Retrieved Components . | . . . . . . . . . . . . . . . . . . . . . . . . . . . Parts Scanalyzed 1 | . . . . . . . 1 . . . . . . . . . . . . . . . . . . . Part Schematics Acquired 1 | . . . . . . . 1 . . . . . . . . . . . . . . . . . . . Parts Damaged 1 | . . . . . . . 1 . . . . . . . . . . . . . . . . . . . Bothacking | -11 -10 -10 -9 -9 -9 -8 -8 -7 -6 -5 -5 -5 -5 -5 -4 -4 -4 -4 -3 -3 -3 -3 -2 -2 -1 -1 ------------ Run | Scr Mat Min Mat Min Exi Min Mat Fac Fac Fac Ext Cet Arc Hub Fac Upp Upp Zhi Pro Res Arm Lab Res Tes Acc Com Used RIF Installer . | . . . . . . . . . . . . . . . . . . . . . . . . . . . Robots Hacked . | . . . . . . . . . . . . . . . . . . . . . . . . . . . Non-combat . | . . . . . . . . . . . . . . . . . . . . . . . . . . . Combat . | . . . . . . . . . . . . . . . . . . . . . . . . . . . Robot Hacks Applied . | . . . . . . . . . . . . . . . . . . . . . . . . . . . Relay Couplers Released . | . . . . . . . . . . . . . . . . . . . . . . . . . . . Robots Rewired 4 | . . . . . . . . . . . 4 . . . . . . . . . . . . . . . Allies Hacked . | . . . . . . . . . . . . . . . . . . . . . . . . . . . Hacks Repelled . | . . . . . . . . . . . . . . . . . . . . . . . . . . . Allies | -11 -10 -10 -9 -9 -9 -8 -8 -7 -6 -5 -5 -5 -5 -5 -4 -4 -4 -4 -3 -3 -3 -3 -2 -2 -1 -1 -------- Run | Scr Mat Min Mat Min Exi Min Mat Fac Fac Fac Ext Cet Arc Hub Fac Upp Upp Zhi Pro Res Arm Lab Res Tes Acc Com Total Allies 17 | . . 1 . 2 . . . . . . 8 . . . . . . . . . . . . . 6 . Largest Group 7 | . . 1 . 2 . . . . . . 7 . . . . . . . . . . . . . 5 . Highest-Rated Group 377 | . . 31 . 38 . . . . . . 324 . . . . . . . . . . . . . 377 . Highest-Rated Ally 156 | . . 31 . 31 . . . . . . 156 . . . . . . . . . . . . . 131 . Total Orders 5 | . . . . . 2 . . . . . 1 . . . . . . . . . . . . . 2 . STAY 1 | . . . . . . . . . . . 1 . . . . . . . . . . . . . . . EXPLORE 2 | . . . . . . . . . . . . . . . . . . . . . . . . . 2 . RETURN 2 | . . . . . 2 . . . . . . . . . . . . . . . . . . . . . Ally Attacks 271 | . . 4 . 7 37 . . . . . 98 . . . . . . . . . . . . . 125 . Total Damage 6355 | . . 62 . 83 192 . . . . . 1749 . . . . . . . . . . . . . 4269 . Kills 28 | . . 2 . . . . . . . . 8 . . . . . . . . . . . . . 18 . Allies Corrupted 1 | . . . . . . . . . . . . . . . . . . . . . . . . . 1 . Allies Melted . | . . . . . . . . . . . . . . . . . . . . . . . . . . . Intel | -11 -10 -10 -9 -9 -9 -8 -8 -7 -6 -5 -5 -5 -5 -5 -4 -4 -4 -4 -3 -3 -3 -3 -2 -2 -1 -1 ------- Run | Scr Mat Min Mat Min Exi Min Mat Fac Fac Fac Ext Cet Arc Hub Fac Upp Upp Zhi Pro Res Arm Lab Res Tes Acc Com Robot Analysis Total 7 | . 2 . 1 . . . . . . . . . . . . . . 4 . . . . . . . . Derelict Logs Recovered 4 | . . . . 2 . . . . . . . . . . . 1 1 . . . . . . . . . Drone Launches 18 | . . . . . 12 . . . . . . . . . . . . . . . . . . . 6 . Drone Recoveries 10 | . . . . . 10 . . . . . . . . . . . . . . . . . . . . . Exploration | -11 -10 -10 -9 -9 -9 -8 -8 -7 -6 -5 -5 -5 -5 -5 -4 -4 -4 -4 -3 -3 -3 -3 -2 -2 -1 -1 ------------- Run | Scr Mat Min Mat Min Exi Min Mat Fac Fac Fac Ext Cet Arc Hub Fac Upp Upp Zhi Pro Res Arm Lab Res Tes Acc Com Turns Passed 18020 | . 140 697 1305 1519 1538 525 1112 674 532 153 758 273 104 371 213 646 1038 242 309 275 506 638 611 1268 918 1655 Spaces Moved 10147 | 1 65 384 549 583 655 339 329 713 662 177 619 160 88 266 213 464 541 167 523 437 228 301 226 498 412 547 Core 80 | . . . . . . . . . . . . . . . . . . . . 1 30 . . . . 49 Treads 4056 | . 65 384 549 583 494 . 293 . . . . . . . . . . . . . 197 . 217 487 412 375 Legs 558 | 1 . . . . 161 339 36 . . . . . . . . . . . . . . . . 11 . 10 Wheels 113 | . . . . . . . . . . . . . . . . . . . . . . . . . . 113 Hover 5340 | . . . . . . . . 713 662 177 619 160 88 266 213 464 541 167 523 436 1 301 9 . . . Flight . | . . . . . . . . . . . . . . . . . . . . . . . . . . . Fastest Speed 36 | 120 160 160 160 180 150 150 150 72 68 68 68 68 68 68 63 63 52 42 42 36 44 44 44 155 155 50 Average Speed 117 | 120 160 160 176 180 183 150 176 73 68 68 69 73 68 69 64 64 155 135 42 43 161 44 155 159 155 144 Slowest Speed 600 | 120 160 160 180 180 220 150 220 142 68 138 138 138 68 142 128 128 261 261 42 600 350 44 160 180 172 270 Overloaded Moves . | . . . . . . . . . . . . . . . . . . . . . . . . . . . Propulsion Burnouts . | . . . . . . . . . . . . . . . . . . . . . . . . . . . Robots Hopped . | . . . . . . . . . . . . . . . . . . . . . . . . . . . Cave-ins Triggered . | . . . . . . . . . . . . . . . . . . . . . . . . . . . Teleports 2 | . . . . . . . . . . . . . . . . . . . . . 1 . 1 . . . Exploration Rate (%) 45 | 2 15 82 58 95 88 83 34 18 21 5 62 56 80 46 10 62 70 61 83 15 9 80 11 52 13 23 Regions Visited 26 Branch Regions 16 Pre-discovered Areas 5 | . . . . 1 1 . . . . . . . . . . . . 3 . . . . . . . . Known Exits Taken 4 | . . . . . . . . . . . . . . . 1 . . . . 1 . . 1 . 1 . Unknown Exits Taken 22 | 1 1 1 1 1 1 1 1 1 1 1 1 1 1 1 . 1 1 1 1 . 1 1 . 1 . . Scrap Searched 9 | . . 1 . 3 . 1 . . . . . . . . . . . . 4 . . . . . . . Spaces Dug 43 | . . . . . . . . . . 2 . . 1 5 . . . . . . . . 17 . . 18 Terrain Destroyed 688 | . . . . . 6 . . . . 2 14 32 8 32 63 9 14 . 1 2 2 . 69 50 125 259 Melee 2 | . . . . . . . . . . 2 . . . . . . . . . . . . . . . . Projectile 96 | . . . . . 6 . . . . . 5 2 8 26 7 3 14 . 1 2 2 . 5 4 5 6 AOE 590 | . . . . . . . . . . . 9 30 . 6 56 6 . . . . . . 64 46 120 253 Terrain Rammed . | . . . . . . . . . . . . . . . . . . . . . . . . . . . Walls Destroyed . | . . . . . . . . . . . . . . . . . . . . . . . . . . . Machines Disabled . | . . . . . . . . . . . . . . . . . . . . . . . . . . . Actions | -11 -10 -10 -9 -9 -9 -8 -8 -7 -6 -5 -5 -5 -5 -5 -4 -4 -4 -4 -3 -3 -3 -3 -2 -2 -1 -1 --------- Run | Scr Mat Min Mat Min Exi Min Mat Fac Fac Fac Ext Cet Arc Hub Fac Upp Upp Zhi Pro Res Arm Lab Res Tes Acc Com Total 14877 | . 83 431 762 1030 872 345 647 822 722 196 827 273 108 358 262 782 640 182 593 525 353 806 456 954 678 1170 Wait 2293 | . 2 7 48 416 69 . 140 39 12 6 59 28 . 32 18 280 12 . 47 22 34 486 42 230 88 176 Move 10121 | . 64 383 548 582 654 338 328 712 661 176 618 159 87 265 212 463 540 166 522 436 227 300 225 497 411 547 Hop . | . . . . . . . . . . . . . . . . . . . . . . . . . . . Pick Up 232 | . . 9 34 7 16 . 17 7 12 1 8 10 1 . 8 1 5 3 4 15 22 7 7 19 9 10 Fast Attach 141 | . 1 . 7 . 10 . 3 1 2 1 3 4 . . . . 5 5 2 4 16 . 12 26 7 32 Attach 202 | . 2 2 6 . 9 . 17 13 7 2 7 2 . 2 7 4 15 1 7 10 10 4 11 13 5 46 Detach 86 | . . . . . 4 . 1 9 . 1 4 1 . . . 2 3 6 2 6 2 2 7 7 2 27 Swap 129 | . . 4 7 2 8 . 3 13 7 2 6 16 . 6 2 2 1 . . 3 5 1 6 15 6 14 Drop 233 | . 4 5 22 8 23 . 7 7 10 1 11 17 1 1 1 . 2 1 . 18 16 . 16 31 10 21 Fire 1350 | . 10 21 88 14 78 7 131 21 11 . 60 36 19 52 13 30 54 . 9 10 21 6 128 110 139 282 Melee 15 | . . . . . . . . . . 6 9 . . . . . . . . . . . . . . . Ram 6 | . . . . . . . . . . . . . . . 1 . 3 . . 1 . . . . . 1 Kick . | . . . . . . . . . . . . . . . . . . . . . . . . . . . Crush 7 | . . . 2 1 1 . . . . . . . . . . . . . . . . . 2 . . 1 Escape Stasis 24 | . . . . . . . . . . . 11 . . . . . . . . . . . . . . 13 Rewire 37 | . . . . . . . . . . . 31 . . . . . . . . . . . . 6 . . Trap . | . . . . . . . . . . . . . . . . . . . . . . . . . . . Miscellaneous 1 | . . . . . . . . . . . . . . . . . . . . . . . . . 1 . Route ------- -11/Scrapyard -10/Materials -10/Mines (discovered 2 exits: *Mat x2) -9/Materials (discovered 4 exits: *Mat x2 / [*Min] / [*Sto]) -9/Mines (discovered 4 exits: *Mat x2 / *Exi / [*Zio]) -9/Exiles -8/Mines (discovered 2 exits: *Mat x2) -8/Materials -7/Factory -6/Factory -5/Factory -5/Extension (discovered 2 exits: *Fac / [*Cet]) -5/Cetus (discovered 2 exits: *Fac / [*Arc]) -5/Archives (discovered 3 exits: *Fac / *Hub x2) -5/Hub_04(d) (discovered 2 exits: *Fac x2) -4/Factory (discovered 2 exits: *Upp x2) -4/Upper Caves -4/Upper Caves (discovered 2 exits: *Res / *Zhi) -4/Zhirov -3/Proximity Caves -3/Research (discovered 3 exits: *Arm / Qua x2) -3/Armory -3/Lab -2/Research -2/Testing -1/Access (discovered 2 exits: Sur / *Com) -1/Command History --------- Turn | Location | Event 1 | -11/Scrapyard | Discovered new exit (range 0) 1 | -11/Scrapyard | Entered Materials 21 | -10/Materials | Discovered new exit (range 15) 141 | -10/Materials | Entered Mines 179 | -10/Mines | Met a Derelict bent on vengeance 276 | -10/Mines | Joined a pair of Derelicts in attacking an 0b10 outpost 317 | -10/Mines | Build established: Mutant 352 | -10/Mines | Discovered new exit (range 7) 355 | -10/Mines | Received a Mining Laser from a helpful Derelict 673 | -10/Mines | Discovered new exit (range 6) 690 | -10/Mines | Found the Drone Emporium 696 | -10/Mines | Found Prototype Device 838 | -10/Mines | Entered Materials 838 | -9/Materials | Evolved 2 slots: Utility x2 839 | -9/Materials | Build established: Scavenger-Mutant 842 | -9/Materials | Discovered new exit (range 13) 997 | -9/Materials | Lost 3 parts (1u2w) 1266 | -9/Materials | Build established: Mutant 1641 | -9/Materials | Discovered new exit (range 14) 1935 | -9/Materials | Discovered new exit (range 12) 2118 | -9/Materials | Discovered new exit (range 14) 2143 | -9/Materials | Entered Mines 2205 | -9/Mines | Learned Materials terminal intel 2291 | -9/Mines | Discovered new exit (range 6) 2330 | -9/Mines | Learned Materials security intel 2401 | -9/Mines | Assembled infested the area 3140 | -9/Mines | Discovered new exit (range 10) 3228 | -9/Mines | A Derelict revealed a hidden shortcut to a safe place 3419 | -9/Mines | Discovered new exit (range 5) 3519 | -9/Mines | Learned location of Storage (-9) 3662 | -9/Mines | Entered Exiles 3706 | -9/Exiles | Met 8R-AWN 3738 | -9/Exiles | Met EX-HEX 3808 | -9/Exiles | Met EX-DEC 3815 | -9/Exiles | Learned location of Zion (-7) 4032 | -9/Exiles | Met EX-BIN 4060 | -9/Exiles | Aligned with FarCom system 4062 | -9/Exiles | Given EX-Vault access code 4108 | -9/Exiles | Opened EX-Vault 4124 | -9/Exiles | Found Superbattery 4127 | -9/Exiles | Found YOLO Cannon 4134 | -9/Exiles | Found Trap Reconfigurator 4175 | -9/Exiles | Warned to stay clear of 0b10 Research branches 4247 | -9/Exiles | Build established: Hauler-Mutant 4288 | -9/Exiles | Attacked by the Exiles 4362 | -9/Exiles | Destroyed 7 combat bots 4374 | -9/Exiles | Identified Thief Drone Bay 4427 | -9/Exiles | Found 8R-AWN's Boregun 4428 | -9/Exiles | Found 8R-AWN's Boregun 4536 | -9/Exiles | Destroyed EX-BIN 4631 | -9/Exiles | Destroyed EX-DEC 4681 | -9/Exiles | Destroyed EX-HEX 4735 | -9/Exiles | Found Prototype Device 4735 | -9/Exiles | Identified System Purifier 4907 | -9/Exiles | Destroyed 8R-AWN 4938 | -9/Exiles | Found Prototype Protection 5162 | -9/Exiles | Found Prototype Device 5162 | -9/Exiles | Identified AS-neutralizer No. 17b 5188 | -9/Exiles | Discovered new exit (range 10) 5200 | -9/Exiles | Entered Mines 5410 | -8/Mines | Discovered new exit (range 7) 5467 | -8/Mines | Discovered new exit (range 8) 5725 | -8/Mines | Entered Materials 5725 | -8/Materials | Evolved 2 slots: Utility x2 5727 | -8/Materials | Loaded intel: 12 terminal locations 6151 | -8/Materials | Build established: Scavenger-Mutant 6481 | -8/Materials | Repaired Hvy. Deuterium Engine 6552 | -8/Materials | Repaired Broken Cmb. Airjet 6688 | -8/Materials | Lost 3 parts (1n1u1w) 6758 | -8/Materials | Discovered new exit (range 16) 6790 | -8/Materials | Core integrity fell below 50% 6837 | -8/Materials | Entered Factory 6837 | -7/Factory | Evolved 2 slots: Propulsion x1, Utility x1 7394 | -7/Factory | Repaired Exp. Heat Sink? 7441 | -7/Factory | Discovered new exit (range 15) 7505 | -7/Factory | Repaired Hvy. Assault Rifle 7511 | -7/Factory | Entered another Factory area 7511 | -6/Factory | Evolved 2 slots: Propulsion x1, Utility x1 7747 | -6/Factory | Fabricated Cmb. Airjet? 7753 | -6/Factory | Found Prototype Processor 7866 | -6/Factory | Fabricated Cmb. Airjet? 7989 | -6/Factory | Discovered new exit (range 5) 8012 | -6/Factory | Identified Exp. Signal Interpreter 8043 | -6/Factory | Entered another Factory area 8043 | -5/Factory | Evolved 2 slots: Power x1, Utility x1 8194 | -5/Factory | Discovered new exit (range 6) 8196 | -5/Factory | Entered Extension 8254 | -5/Extension | Rescued a captive Derelict 8369 | -5/Extension | Rescued a captive Derelict 8369 | -5/Extension | Rescued a captive Derelict 8443 | -5/Extension | Rescued A7 8693 | -5/Extension | Spotted B-75 Beast 8716 | -5/Extension | Allies destroyed B-75 Beast 8727 | -5/Extension | Spotted B-75 Beast 8743 | -5/Extension | Lost 3 parts (2u1w) 8748 | -5/Extension | Allies destroyed B-75 Beast 8771 | -5/Extension | Disrupted transfer network 8812 | -5/Extension | Destroyed A7 8823 | -5/Extension | Extracted ID and sensor layout for unrecognized location from A7's data core 8835 | -5/Extension | Found Prototype Protection 8836 | -5/Extension | Identified Med. Regenerative Plating 8942 | -5/Extension | Discovered new exit (range 15) 8942 | -5/Extension | Discovered new exit (range 15) 8954 | -5/Extension | Entered Cetus 8966 | -5/Cetus | Spotted Cetus Guard 8966 | -5/Cetus | Spotted Cetus Guard 8968 | -5/Cetus | Spotted Cetus Guard 8975 | -5/Cetus | Destroyed Cetus Guard 8975 | -5/Cetus | Destroyed Cetus Guard 8975 | -5/Cetus | Spotted Cetus Guard 8976 | -5/Cetus | Destroyed Cetus Guard 8977 | -5/Cetus | Destroyed Cetus Guard 9064 | -5/Cetus | Discovered new exit (range 15) 9084 | -5/Cetus | Spotted Cetus Guard 9099 | -5/Cetus | Destroyed Cetus Guard 9107 | -5/Cetus | Spotted Cetus Guard 9109 | -5/Cetus | Spotted Cetus Guard 9112 | -5/Cetus | Destroyed Cetus Guard 9143 | -5/Cetus | Destroyed Cetus Guard 9148 | -5/Cetus | Destroyed Cetus Guard 9167 | -5/Cetus | Discovered new exit (range 15) 9171 | -5/Cetus | Met Revision 17 9227 | -5/Cetus | Entered Archives 9298 | -5/Archives | Discovered new exit (range 16) 9306 | -5/Archives | Discovered new exit (range 16) 9314 | -5/Archives | Discovered new exit (range 15) 9331 | -5/Archives | Entered Hub_04(d) 9588 | -5/Hub_04(d) | Discovered new exit (range 8) 9588 | -5/Hub_04(d) | Spotted B-75 Beast 9674 | -5/Hub_04(d) | Discovered new exit (range 7) 9702 | -5/Hub_04(d) | Entered Factory 9702 | -4/Factory | Evolved 2 slots: Propulsion x1, Utility x1 9756 | -4/Factory | Lost 4 parts (1n2u1w) 9875 | -4/Factory | Identified exit to Upper Caves 9915 | -4/Factory | Entered Upper Caves 9942 | -4/Upper Caves | Lost 4 parts (2u2w) 10253 | -4/Upper Caves | Spotted B-86 Titan 10379 | -4/Upper Caves | Discovered new exit (range 9) 10561 | -4/Upper Caves | Entered another Upper Caves area 10570 | -4/Upper Caves | Learned Research terminal intel 10584 | -4/Upper Caves | Attracted the attention of an 0b10 checkpoint 10596 | -4/Upper Caves | Discovered new exit (range 15) 10731 | -4/Upper Caves | Attracted the attention of an 0b10 outpost 10803 | -4/Upper Caves | Lost 5 parts (1p3n1u) 10888 | -4/Upper Caves | Identified 8R-AWN's Armor/EX 10916 | -4/Upper Caves | Lost 6 parts (3n3u) 10945 | -4/Upper Caves | Destroyed 7 combat bots 11218 | -4/Upper Caves | Discovered new exit (range 7) 11599 | -4/Upper Caves | Entered Zhirov 11599 | -4/Zhirov | Discovered new exit (range 3) 11646 | -4/Zhirov | Met Zhirov 11749 | -4/Zhirov | Found Alien Artifact 11749 | -4/Zhirov | Identified Integrated Reactor 11749 | -4/Zhirov | Installed Integrated Reactor, increased core energy generation (+10) 11761 | -4/Zhirov | Found Alien Artifact 11811 | -4/Zhirov | Learned location of Quarantine (-3) 11811 | -4/Zhirov | Learned location of Testing (-2) 11811 | -4/Zhirov | Learned location of Command (-1) 11824 | -4/Zhirov | Zhirov requested help retrieving the SGEMP Prototype 11841 | -4/Zhirov | Entered Proximity Caves 12061 | -3/Proximity Caves | Spotted B-86 Titan 12119 | -3/Proximity Caves | Lost 4 parts (2p2u) 12145 | -3/Proximity Caves | Discovered new exit (range 13) 12150 | -3/Proximity Caves | Entered Research 12150 | -3/Research | Evolved 2 slots: Propulsion x1, Utility x1 12151 | -3/Research | Loaded intel: 20 terminal locations 12159 | -3/Research | Identified exit to Armory 12159 | -3/Research | Identified exit to Quarantine 12324 | -3/Research | Found Fusion Bomb Launcher 12350 | -3/Research | Revision forces began assault on 0b10 12425 | -3/Research | Spotted B-86 Titan 12425 | -3/Research | Entered Armory 12456 | -3/Armory | Lost 9 parts (6n3u) 12630 | -3/Armory | Found Fusion Bomb Launcher 12632 | -3/Armory | Found Fusion Bomb Launcher 12635 | -3/Armory | Found Fusion Bomb Launcher 12756 | -3/Armory | Found Quantum Capacitor 12913 | -3/Armory | Identified Transdimensional Reconstructor 12913 | -3/Armory | Warped through subspace to slip node 12913 | -3/Armory | Discovered new exit (range 1) 12915 | -3/Armory | Fabricated Assault Drone Bay? 12931 | -3/Armory | Entered Lab 12931 | -3/Lab | Discovered new exit (range 9) 12937 | -3/Lab | Hidden lab's door opened automatically 12937 | -3/Lab | Sensor layout match revealed 12938 | -3/Lab | Gained access to the hidden lab's interior 12944 | -3/Lab | Lost 3 parts (2n1u) 13306 | -3/Lab | Found Transdimensional Reconstructor 13311 | -3/Lab | Found Integrated Reactor 13324 | -3/Lab | Found Alien Artifact 13350 | -3/Lab | Installed Integrated Reactor, increased core energy generation (+10) 13388 | -3/Lab | Found Prototype Device 13391 | -3/Lab | Identified AEGIS Remote Shield 13397 | -3/Lab | Found Prototype Energy Gun 13407 | -3/Lab | Found Prototype Energy Gun 13546 | -3/Lab | Identified Hyp. EM Gauss Rifle 13547 | -3/Lab | Identified Tachyon Dispersion Ray 13552 | -3/Lab | Found Alien Artifact 13566 | -3/Lab | Unable to decrypt terminal 13568 | -3/Lab | Unable to decrypt terminal 13569 | -3/Lab | Entered Research 13569 | -2/Research | Evolved 2 slots: Utility x2 13570 | -2/Research | Identified exit to Testing 13680 | -2/Research | Spotted B-90 Cyclops 13712 | -2/Research | Destroyed B-90 Cyclops 13876 | -2/Research | Garrison activated, responded to threat 13951 | -2/Research | Warped through subspace 14001 | -2/Research | Found Prototype Processor 14001 | -2/Research | Identified Exp. Core Analyzer 14180 | -2/Research | Entered Testing 14499 | -2/Testing | Spotted Striker 14502 | -2/Testing | Spotted Striker 14565 | -2/Testing | Lost 4 parts (2p1n1w) 14773 | -2/Testing | Spotted Alpha 7 14782 | -2/Testing | Destroyed Striker 14787 | -2/Testing | Destroyed Striker 14841 | -2/Testing | Destroyed Alpha 7 14870 | -2/Testing | Found Prototype Device 14870 | -2/Testing | Identified Exp. ECM Suite 14937 | -2/Testing | Stole the SGEMP Prototype 15045 | -2/Testing | Found Prototype Energy Cannon 15048 | -2/Testing | Found Prototype Energy Cannon 15050 | -2/Testing | Identified Potential Cannon 15051 | -2/Testing | Identified Imp. Potential Cannon 15223 | -2/Testing | Discovered new exit (range 13) 15242 | -2/Testing | Spotted PD-ZQ0UK66B9I 15253 | -2/Testing | Destroyed PD-ZQ0UK66B9I 15265 | -2/Testing | Found Prototype Launcher 15265 | -2/Testing | Identified Ragnarok Missile Launcher 15386 | -2/Testing | Found AEGIS Remote Shield 15448 | -2/Testing | Entered Access 15448 | -1/Access | Evolved 2 slots: Power x1, Utility x1 15449 | -1/Access | Loaded intel: 120 machine locations 15449 | -1/Access | Loaded intel: 89 trap records 15449 | -1/Access | Identified exit to Surface 15449 | -1/Access | Discovered exit to Surface (range 118) 15449 | -1/Access | Identified exit to Command 15449 | -1/Access | Discovered exit to Command (range 183) 15449 | -1/Access | Delivered the SGEMP Prototype to Zhirov 15449 | -1/Access | Zhirov transferred Access data 15481 | -1/Access | Garrison activated, responded to threat 15750 | -1/Access | Found Unknown Protection 15834 | -1/Access | Allied Derelicts emerged from ambush trap array 15948 | -1/Access | First assault squad dispatched 15988 | -1/Access | Zhirov warped through subspace 16182 | -1/Access | Destroyed 10 combat bots 16201 | -1/Access | Identified Adv. Powered Armor 16244 | -1/Access | High security lockdown imminent 16324 | -1/Access | High security lockdown engaged 16366 | -1/Access | Entered Command 16499 | -1/Command | Identified Core Regenerator 16499 | -1/Command | Used Core Regenerator, restored core integrity (+84) 16655 | -1/Command | First assault squad dispatched 16777 | -1/Command | Destroyed 10 combat bots 16812 | -1/Command | Spotted B-99 Colossus 16910 | -1/Command | System corruption reached 10% 16913 | -1/Command | Destroyed B-99 Colossus 16961 | -1/Command | Destroyed 8 combat bots 16970 | -1/Command | Lost 9 parts (2p1n6u) 17155 | -1/Command | High security lockdown imminent 17235 | -1/Command | High security lockdown engaged 17357 | -1/Command | Destroyed 13 combat bots 17423 | -1/Command | Spotted Striker 17425 | -1/Command | Destroyed Striker 17425 | -1/Command | Destroyed Investigator 17477 | -1/Command | Destroyed 19 combat bots 17581 | -1/Command | Spotted Striker 17584 | -1/Command | Destroyed Striker 17632 | -1/Command | Destroyed 25 combat bots 17636 | -1/Command | Lost 6 parts (1p2n3u) 17650 | -1/Command | Found Prototype Launcher 17765 | -1/Command | Spotted Striker 17765 | -1/Command | Spotted Striker 17765 | -1/Command | Spotted Executioner 17767 | -1/Command | Spotted Striker 17768 | -1/Command | Scanned by Researcher 17769 | -1/Command | Spotted Investigator 17772 | -1/Command | Destroyed Executioner 17772 | -1/Command | Destroyed Striker 17772 | -1/Command | Destroyed Investigator 17778 | -1/Command | Destroyed Striker 17783 | -1/Command | Spotted Striker 17784 | -1/Command | Destroyed Striker 17804 | -1/Command | Destroyed Striker 17828 | -1/Command | Destroyed 31 combat bots 17871 | -1/Command | Lost 15 parts (4p4n3u4w) 18000 | -1/Command | Spotted Striker 18002 | -1/Command | Spotted Striker 18006 | -1/Command | Spotted Striker 18006 | -1/Command | Spotted Executioner 18015 | -1/Command | Spotted Combat Programmer 18016 | -1/Command | Core integrity fell below 50% 18016 | -1/Command | Spotted Combat Programmer 18017 | -1/Command | Spotted M Guard 18017 | -1/Command | Spotted M Guard 18020 | -1/Command | Core integrity fell below 20% 18021 | -1/Command | Destroyed by M Guard with Graviton Cannon Last Messages --------------- 18012_ Dropped Hcp. Storage Unit. 18013_ Dropped Lrg. Storage Unit. 18013_ Slammed into Striker. 18013_ Striker knocked back. 18013_ Penetrated by Slug. 18013_ Myomer Leg destroyed. 18013_ Penetrated by Slug. 18014_ Slug penetrates Striker. 18014_ Striker suffers critical hit. 18014_ Slug penetrates Wall. 18017_ EMDS Slug penetrates Combat Programmer. 18017_ Penetrated by EMDS Slug. 18017_ Knocked back. 18017_ Penetrated by Slug. 18018_ P-80 Master resets H-88 Terminator, system corruption cleaned. 18019_ Penetrated by Slug. 18019_ Penetrated by EMDS Slug. 18019_ Knocked back. 18020_ The unstable cave ceiling collapses. 18021_ Slug penetrates B-74 Champion. Map ----- +----------------------------------------------------+ | ?????????????????????????????????????????????????? | | ?????????????????????????????????????????????????? | | ?????????????????????????????????????????????????? | | ?????????????????????????????????????????????????? | | ?????????????????????????????????????????????????? | | ?????????????????????????????????????????????????? | | ?????????????????????????????????????????????????? | | ?????????????????????????????????????????????????? | | ?????????????????????????????????????????????????? | | ?????????????????????????????????????????????????? | | ?????????????????????????????? ??????????????????? | | ?????????????????????????????? #????????????????? | | ?????????????????????????????? #????????????????? | | ?????????????????????????????? #????????????????? | | ????????????????????????????? #????????????????? | | ????????????????????????????? #????????????????? | | ????????????????????????????? #????????????????? | | ????????????????????????????? #????????????????? | | ????????????????????????????? #?????????????#### | | ????????????????????????????? #??######?##### | | ????????????????????????????? #??# # ## | | ??????????????????????????### ### #!! | | ??????????????????????????# # ; "" # | | ??????????????????????????# " | | ?????????????????????#+++## W # "[ | | ?????????????????????# @ K K b [ ! | | ?????????????????????# Y K [ ! % | | ?????????????????????# ] ! | | ?????????????????????# Y | | ?????????????????????# p !% | | ?????????????????????# p ### ## W ### =|= | | ?????????????????????######?# ### #?# # ! | | ????????????????????????????#####?#####?###### | | ?????????????????????????????????????????????##### | | ???????????????????????????????????????????????## | | ????????????????????????????????????????????????## | | ?????????????????????????????????????????????????? | | ?????????????????????????????????????????????????? | | ?????????????????????????????????????????????????? | | ?????????????????????????????????????????????????? | | ?????????????????????????????????????????????????? | | ?????????????????????????????????????????????????? | | ?????????????????????????????????????????????????? | | ?????????????????????????????????????????????????? | | ?????????????????????????????????????????????????? | | ?????????????????????????????????????????????????? | | ?????????????????????????????????????????????????? | | ?????????????????????????????????????????????????? | | ?????????????????????????????????????????????????? | | ?????????????????????????????????????????????????? | +----------------------------------------------------+ Best States ------------- Heat Dissipation 183 Coolant Potential 100 Energy Generation 87 Energy Capacity 1475 Matter Stores 500 Matter Capacity 500 Sight Range 16 Terrain Scan Range 24 Terrain Scan Density 110 Cloak Strength 3 Power Amplification 30 Additional Mass Support 16 Armor Coverage 2150 Resistance: KI 30 Resistance: TH 15 Resistance: EX 90 Core Shielding 30 Propulsion Shielding 66 Weapon Shielding 90 Weapon Cycling 25 Phase Shifting 5 Evasion (%) 68 Targeting Accuracy 5 Melee Accuracy 6 Target Analysis 8 Core Analysis 15 Armor Integrity Analysis 50 Recoil Reduction 6 Particle Charging 30 Offensive Hacking 26 Defensive Hacking 14 Item Schematics ----------------- Cmb. Airjet | -8/Materials | Scanalyzed Assault Drone Bay | -4/Zhirov | Free Exp. Heat Sink | -4/Zhirov | Free Exp. Optical Array | -4/Zhirov | Free Imp. Arc Thrower | -4/Zhirov | Free Robot Schematics ------------------ None Fabricated ------------ Cmb. Airjet | x2 | -6/Factory Cmb. Airjet | x2 | -6/Factory Assault Drone Bay | x1 | -3/Armory Alien Tech Used ----------------- Integrated Reactor Transdimensional Reconstructor Core Regenerator Achievements -------------- None Challenges ------------ None Game ------ Seed CoolingRocketRedistributor Manual? 0 Play Time 03:27:35 Cumulative 254.5 hours Start 2021.01.16 @ 11:59:32 End 2021.01.16 @ 15:38:02 Sessions 1 Manual Loads 0 Difficulty Rogue Special Mode None Game No. 222 Rogue 215 Adventurer 0 Explorer 7 Win Type - Total 6 Types 2/0/4/0/0/0/0/0/0 Lore% 72 Gallery% 91 Achievement% 69 Wizard Run 0 Options --------- ASCII 0 Keyboard 0 Movement Numpad Keybinds 0 Fullscreen 1 Font 18/X11 Map View 76x50 Tactical HUD 1 Map Filters NONE Filters NONE Steam 1 RUN: c4cb5002-e03a-4b2e-8e27-d709ce0e3d1d